Cogmind - Beta 14 @@@ ROGUE MODE // 2024.10.12 @ 00:34:00 Player: Minty Result: Destroyed by Shrapnel Trap Performance ------------- Evolutions (0) 0 Regions Visited (2) 400 Robots Destroyed (11) 55 Value Destroyed (350) 350 Prototype IDs (0) 0 Alien Tech Used (0) 0 Bonus (0) 0 TOTAL SCORE: 805 Bonus ------- None Cogmind --------- Core Integrity 0/250 Matter 291/300 Energy 100/100 System Corruption 0% Temperature Cool (0) Movement Core (150) Ox2 Location -10/Subcaves Parts ------- > --- POWER (1) -------- (None) > --- PROPULSION (2) --- (None) > --- UTILITY (2) ------ Small Storage Unit Makeshift Light Armor Plating > --- WEAPON (2) ------- (None) > --- INVENTORY (8) ---- Heat Sink Sensor Array Signal Interpreter Tractor Beam Grenade Launcher Multitool Flail Peak State ------------ > --- POWER ------------ (None) > --- PROPULSION ------- Light Treads Light Treads > --- UTILITY ---------- Small Storage Unit Makeshift Light Armor Plating > --- WEAPON ----------- Shotgun Shotgun > --- INVENTORY -------- Wheel Heat Sink Sensor Array Signal Interpreter Tractor Beam Grenade Launcher Multitool Flail [Rating: 12] Favorites ----------- Power Light Ion Engine Engine Light Ion Engine Propulsion Light Treads Treads Light Treads Leg Aluminum Leg Utility Small Storage Unit Storage Small Storage Unit Processor Improved Targeting Computer Protection Light Armor Plating Weapon Shotgun Energy Gun EM Pulse Gun Ballistic Gun Shotgun Launcher Grenade Launcher Impact Weapon Flail Build | -11 -10 -10 ------- Run | Yrd Mat Sub Slots Evolved . | . . . Power . | . . . Propulsion . | . . . Utility . | . . . Weapon . | . . . Parts Attached 22 | . 16 6 Power 4 | . 3 1 Engine 4 | . 3 1 Core . | . . . Reactor . | . . . Propulsion 4 | . 4 . Treads 2 | . 2 . Leg 2 | . 2 . Wheel . | . . . Hover . | . . . Flight . | . . . Utility 4 | . 3 1 Device . | . . . Storage . | . . . Processor 1 | . 1 . Hackware . | . . . Protection 3 | . 2 1 Artifact . | . . . Weapon 10 | . 6 4 Energy Gun 2 | . 2 . Energy Cannon . | . . . Ballistic Gun 4 | . 3 1 Ballistic Cannon . | . . . Launcher 3 | . 1 2 Special Weapon . | . . . Impact Weapon 1 | . . 1 Slashing Weapon . | . . . Piercing Weapon . | . . . Special Melee Weapon . | . . . Unidentified Prototypes . | . . . Parts Lost 6 | . . 6 Power 2 | . . 2 Propulsion 2 | . . 2 Utility . | . . . Weapon 2 | . . 2 Highest Loss Streak 4 | . . 4 To Critical Strikes . | . . . Average Slot Usage (%) 92 | . 96 90 Engine 8 | . 13 6 Treads 20 | . 8 27 Leg 7 | . 18 . Storage 14 | . 14 14 Processor 8 | . 4 11 Protection 4 | . 8 2 Energy Gun 6 | . 18 . Ballistic Gun 19 | . 9 26 Peak Build Rating 12 | 6 10 12 Average Rating 9 | 6 7 10 On Entrance 7 | 6 6 10 Naked Turns . | . . . Heaviest Build 17 | 11 17 16 Greatest Support 40 | 20 40 40 Greatest Overweight (x) 1 | . 1 . Average Overweight (x) . | . . . Largest Inventory Capacity 8 | 8 8 8 Average Capacity 8 | 8 8 8 Most Carried 8 | 6 8 8 Average Carried 7 | 6 7 7 Final Capacity 8 | 8 8 8 Final Carried 8 | 6 8 7 Class Distribution -------------------- 100% | Mutant Dominant Class ---------------- Mutant | -10/Materials Mutant | -10/Subcaves Resources | -11 -10 -10 ----------- Run | Yrd Mat Sub Matter Collected 659 | 200 127 332 Remotely . | . . . Salvage Created 515 | . 201 314 Parts 31 | . 10 21 Haulers Intercepted . | . . . Recyclers Shooed 1 | . 1 . Parts Field Recycled . | . . . Retrieved Matter . | . . . Parts Self-Destructed . | . . . Prevented . | . . . Kills | -11 -10 -10 ------- Run | Yrd Mat Sub Combat Hostiles Destroyed 8 | . 2 6 Guns 7 | . 2 5 AOE 1 | . . 1 Classes Destroyed 5 | . 4 1 Tunneler 1 | . 1 . Recycler 1 | . 1 . Watcher 1 | . 1 . Grunt 2 | . 2 . Subdweller 6 | . . 6 Best Kill Streak 2 | . 2 2 Combat Bots Only 2 | . 2 2 Max Kills in Single Turn 1 | . 1 1 Gunslinging . | . . . Exploded 1 | . . 1 Melee . | . . . Uniques/NPCs Destroyed . | . . . Combat | -11 -10 -10 -------- Run | Yrd Mat Sub Hostile Shots Fired 64 | . 5 59 Missed 18 | . 3 15 Damage Taken 1144 | . 23 1121 Core 255 | . . 255 Absorbed by Shields . | . . . Core Remaining (%) 100 | 100 . . Volleys Fired 39 | . 11 28 Largest 2 | . 2 2 Hottest 90 | . 90 46 Shots Fired 71 | . 20 51 Gun 67 | . 18 49 Cannon . | . . . Launcher 4 | . 2 2 Special . | . . . Kinetic 57 | . 8 49 Thermal 5 | . 5 . Explosive 4 | . 2 2 Electromagnetic 5 | . 5 . Robot Hit Streak 12 | . 8 12 Robot Miss Streak 2 | . 2 2 Penetration Max . | . . . Secondary Targets . | . . . Shots Hit Robots 64 | . 14 50 Core Hits 34 | . 9 25 Critical Kills 2 | . 1 1 Critical Parts Destroyed . | . . . Critical Strikes 3 | . 2 1 Burn 1 | . 1 . Destroy 2 | . 1 1 Melee Attacks 5 | . . 5 Impact 5 | . . 5 Slashing . | . . . Piercing . | . . . Sneak Attacks . | . . . Combat Hostiles . | . . . Follow-up Attacks . | . . . Damage Inflicted 1187 | . 228 959 Guns 983 | . 219 764 Cannons . | . . . Explosions 74 | . . 74 Melee 121 | . . 121 Ramming 9 | . 9 . Kinetic 891 | . 127 764 Thermal 37 | . 37 . Explosive 74 | . . 74 Electromagnetic 55 | . 55 . Impact 121 | . . 121 Slashing . | . . . Piercing . | . . . Highest Corruption . | . . . Average Corruption . | . . . Corruption Purged . | . . . Corruption Blocked . | . . . Overload Shots . | . . . Overflow Damage . | . . . Projectiles . | . . . Explosions . | . . . Melee . | . . . Knockbacks 1 | . . 1 Impact 1 | . . 1 Kinetic . | . . . Secondary . | . . . Self-Inflicted Damage 112 | . . 112 Shots 3 | . . 3 Rammed . | . . . Targets Rammed 1 | . 1 . Kicked 1 | . 1 . Crushed . | . . . Highest Temperature 117 | . 117 . Average Temperature 46 | . 46 . Received Heat Transfer 165 | . 12 153 Siege Activations . | . . . Robots Corrupted . | . . . Combat Hostiles . | . . . Parts Fried . | . . . Impact Corruptions . | . . . Robots Melted . | . . . Combat Hostiles . | . . . Parts Melted . | . . . Heat Transferred 185 | . 185 . Parts Sabotaged . | . . . Parts Stolen . | . . . Parts Stripped . | . . . Power Chain Reactions . | . . . Alert | -11 -10 -10 ------- Run | Yrd Mat Sub Peak Influence 114 | . 114 . Initial . | . . . Average 47 | . 47 . Maximum Alert Level . | . . . Low Security (%) 100 | 100 100 . Level 1 . | . . . Level 2 . | . . . Level 3 . | . . . Level 4 . | . . . Level 5 . | . . . High Security . | . . . Max Security . | . . . Squads Dispatched . | . . . Investigation . | . . . Extermination . | . . . Reinforcement . | . . . Assault . | . . . Garrison . | . . . Intercept . | . . . Searches Triggered . | . . . Construction Impeded . | . . . Haulers Reinforced . | . . . Active Scanning Responses . | . . . Cargo Convoy Interrupts . | . . . Stealth | -11 -10 -10 --------- Run | Yrd Mat Sub Distress Signals . | . . . Communications Jammed . | . . . Distress Signals . | . . . Times Spotted 15 | . 6 9 Peak Tracking Total 3 | . 2 3 Tactical Retreats . | . . . Traps | -11 -10 -10 ------- Run | Yrd Mat Sub Traps Triggered 3 | . 2 1 Indirectly . | . . . Trap Hack Attempts . | . . . Triggered . | . . . Disarmed . | . . . Reprogrammed . | . . . Reused . | . . . Traps Extracted . | . . . Installed 1 | . . 1 Triggered 1 | . . 1 Most Traps Carried 1 | . . 1 Machines | -11 -10 -10 ---------- Run | Yrd Mat Sub Machines Disabled . | . . . Max in Single Turn . | . . . Machines Repaired . | . . . Machines Dismantled . | . . . Machines Sabotaged . | . . . Overloaded Fab Kills . | . . . Hacking | -11 -10 -10 --------- Run | Yrd Mat Sub Machines Accessed 2 | . 2 . Terminals 1 | . 1 . Fabricators . | . . . Repair Stations . | . . . Recycling Units 1 | . 1 . Scanalyzers . | . . . Garrison Access . | . . . Total Hacks 4 | . 4 . Successful 3 | . 3 . Failed 1 | . 1 . Catastrophic . | . . . Database Lockouts . | . . . Manual 2 | . 2 . Terminals 2 | . 2 . Fabricators . | . . . Repair Stations . | . . . Recycling Units 2 | . 2 . Scanalyzers . | . . . Garrison Access . | . . . Terminal Hacks . | . . . Fabricator Hacks . | . . . Repair Station Hacks . | . . . Recycling Unit Hacks 2 | . 2 . Report Inventory 1 | . 1 . Retrieve Components 1 | . 1 . Scanalyzer . | . . . Garrison Access Hacks . | . . . Unauthorized Hacks 1 | . 1 . Terminals 1 | . 1 . Botnet 1 | . 1 . Fabricators . | . . . Repair Stations . | . . . Recycling Units . | . . . Scanalyzers . | . . . Garrison Access . | . . . Data Cores Recovered . | . . . Used . | . . . Hacking Detections 2 | . 2 . Full Trace Events . | . . . Feedback Events . | . . . Feedback Blocked . | . . . Robot Schematics Acquired . | . . . Robots Built . | . . . Authchips . | . . . Time . | . . . Total Robot Build Rating . | . . . Part Schematics Acquired . | . . . Parts Built . | . . . Authchips . | . . . Time . | . . . Total Part Build Rating . | . . . Parts Repaired . | . . . Time . | . . . Parts Recycled . | . . . Recycled Matter . | . . . Retrieved Matter . | . . . Retrieved Components 1 | . 1 . Parts Scanalyzed . | . . . Part Schematics Acquired . | . . . Parts Damaged . | . . . Bothacking | -11 -10 -10 ------------ Run | Yrd Mat Sub Used RIF Installer . | . . . Robots Hacked . | . . . Non-combat . | . . . Combat . | . . . Robot Hacks Applied . | . . . Relay Couplers Released . | . . . Fabnet Peak Effective % . | . . . Robots Rewired . | . . . Allies Hacked . | . . . Hacks Repelled . | . . . Allies | -11 -10 -10 -------- Run | Yrd Mat Sub Total Allies . | . . . Largest Group . | . . . Highest-Rated Group . | . . . Highest-Rated Ally . | . . . Total Orders . | . . . Ally Attacks . | . . . Total Damage . | . . . Kills . | . . . Allies Corrupted . | . . . Allies Melted . | . . . Intel | -11 -10 -10 ------- Run | Yrd Mat Sub Robot Analysis Total . | . . . Derelict Logs Recovered 1 | . . 1 Drone Launches . | . . . Drone Recoveries . | . . . Exploration | -11 -10 -10 ------------- Run | Yrd Mat Sub Turns Passed 923 | 3 355 565 Spaces Moved 503 | 3 221 279 Core . | . . . Treads 337 | . 58 279 Legs 166 | 3 163 . Wheels . | . . . Hover . | . . . Flight . | . . . Fastest Speed 120 | 120 120 160 Average Speed 147 | 120 131 160 Slowest Speed 190 | 120 190 160 Overloaded Moves . | . . . Propulsion Burnouts . | . . . Robots Hopped . | . . . Cave-ins Triggered . | . . . Exploration Rate (%) 26 | 2 42 36 Regions Visited 2 Branch Regions 1 Pre-discovered Areas 1 | . . 1 Known Exits Taken . | . . . Unknown Exits Taken 2 | 1 1 . Scrap Searched 3 | . . 3 Spaces Dug . | . . . Terrain Destroyed 28 | . 5 23 Melee . | . . . Projectile . | . . . AOE 28 | . 5 23 Terrain Rammed . | . . . Walls Destroyed . | . . . Machines Disabled . | . . . Actions | -11 -10 -10 --------- Run | Yrd Mat Sub Total 602 | 2 262 338 Wait 13 | . . 13 Move 501 | 2 220 279 Hop . | . . . Pick Up 9 | . 7 2 Fast Attach 7 | . 6 1 Attach 3 | . 2 1 Detach 1 | . . 1 Swap 12 | . 8 4 Drop 10 | . 7 3 Fire 39 | . 11 28 Melee 5 | . . 5 Ram . | . . . Kick 1 | . 1 . Crush . | . . . Escape Stasis . | . . . Rewire . | . . . Trap 1 | . . 1 Miscellaneous . | . . . Route ------- -11/Scrapyard -10/Materials (discovered 3 exits: [*Mat x2] / [*Sub]) -10/Subcaves (discovered 3 exits: [*Mat x2] / Rec) History --------- Turn | Location | Event 1 | -11/Scrapyard | Discovered new exit (range 3) 4 | -11/Scrapyard | Entered Materials 105 | -10/Materials | Discovered new exit (range 10) 309 | -10/Materials | Discovered new exit (range 16) 317 | -10/Materials | Build established: Mutant 345 | -10/Materials | Discovered new exit (range 9) 359 | -10/Materials | Entered Subcaves 499 | -10/Subcaves | Learned location of Zion (-6) 499 | -10/Subcaves | Met a Zionite searching for "candidates" 555 | -10/Subcaves | Identified exit to Recycling 641 | -10/Subcaves | Core integrity fell below 50% 685 | -10/Subcaves | Discovered new exit (range 16) 794 | -10/Subcaves | Discovered new exit (range 15) 907 | -10/Subcaves | Disturbed a concealed Subdweller 920 | -10/Subcaves | Ambushed by Subdweller buried in earth 921 | -10/Subcaves | Ambushed by Subdweller buried in earth 921 | -10/Subcaves | Ambushed by Subdweller buried in earth 924 | -10/Subcaves | Destroyed by Shrapnel Trap Last Messages --------------- 00904_ Acquired Shrapnel Trap. 00907_ 1J-N13(R) angrily emerges from the Twisted Machinery. 00907_ Lgt. Treads destroyed. 00908_ Shotgun destroyed. 00909_ Acquired 3 matter. 00912_ Acquired 4 matter. 00912_ 1J-N13(R) affixes Scrap Shield Fragment to Scrap Shield. 00914_ Acquired 4 matter. 00917_ Shotgun destroyed. 00918_ Acquired 10 matter. 00919_ Lgt. Treads destroyed. 00920_ 1J-N13(R) destroyed. 00921_ Acquired 1 matter. 00921_ WO-BON(R): "NOSTUCKSUB!" 00922_ YY-N6S(R): "ARGHSUB!" 00922_ 9E-JEQ(R): "FREEEEDUMB!" 00922_ Dropped Shrapnel Trap. 00923_ Installed Shrapnel Trap. 00924_ Triggered Shrapnel Trap. 00924_ An expanding cloud of shrapnel blasts out in all directions. Map ----- +----------------------------------------------------+ | ?????????????????????????????????????????????????? | | ?????????????????????????????????????????????????? | | ?????????????????????????????????????????????????? | | ?????????????????????????????????????????????????? | | ?????????????????????????????????????????????????? | | ?????????????????????????????????????????????????? | | ?????????????????????????????????????????????????? | | ?????????????????????????????????????????????????? | | ?????????????????????????????????????????????????? | | ?????????????????????????????????????????????????? | | ?????????????????????????????????????????????????? | | ?????????????????????????????????????????????????? | | ?????????????????????????????????????>???????????? | | ?????????????????????????????????????????????????? | | ?????????????????????????????????????????????????? | | ?????????????????????????????????????????????????? | | ?????????????????????????????????????????????????? | | ?????????????????????????????????????????????????? | | ?????????????????????????????????????????????????? | | ?????????????????????????????????????????????????? | | ?????????????????????????????????????????????????? | | ???????????????????????########??????????????????? | | ??????????????????????## #??????????????????? | | ?????????????????????## ##?????????????????? | | ?????????????????????# ; #?????? #?????????? | | ??????????????????????# @R% #?????? #?????????? | | ??????? ????????????# R ] #?### ##????????? | | ??????# ????????????# R =# #????????? | | ?????## ???????????## ; = ???????? | | ?????# #????????????####; ;# ??????? | | ?????? ??????????????# < <# #???????? | | ?????? ?????????????## ## ????????? | | ??????# ###???????????# #?? ????????? | | ?????## ????????????# ##??? ???????? | | ?????? #?????????#### #?????? ??????? | | ##????# #???????### #???????##???????? | | ##???# #???????# #####????????????????? | | ##### #??????## #####????????????????????? | | ## #?###### ####?????????????????????? | | ### # #?????????????????????? | | ##????????????????????? | | #????????????????????? | | # #### # #????????????????????? | | ###??## ### ##????????????????????? | | # #???# #??###?????????????????????? | | ## #?? ?????????????????????????? | | ?# #?# ????????????????????????? | | ?# ###### ##?# #???????????????????????? | | ?# ##????######??## #??????????????????????? | | ?####??????????????## #??????????????????????? | +----------------------------------------------------+ Best States ------------- Heat Dissipation 25 Energy Generation 10 Energy Capacity 250 Matter Stores 300 Matter Capacity 300 Sight Range 16 Terrain Scan Density 10 Armor Coverage 150 Evasion (%) 55 Targeting Accuracy 6 Recoil Reduction 2 Item Schematics ----------------- None Robot Schematics ------------------ None Fabricated ------------ Nothing Alien Tech Used ----------------- None Achievements -------------- None Challenges ------------ None Game ------ Seed MicrowarpKineticObliterator Manual? 0 Play Time 00:08:03 Cumulative 961.7 hours Start 2024.10.12 @ 00:28:13 End 2024.10.12 @ 00:34:00 Sessions 1 Manual Loads 0 Difficulty Rogue Special Mode None Game No. 1177 Rogue 897 Adventurer 124 Explorer 156 Win Type - Total 41 Types 28/0/8/3/1/0/0/1/0 Lore% 85 Gallery% 90 Achievement% 78 Wizard Run 0 Options --------- Layout 0 ASCII 0 Keyboard 1 Movement Numpad Keybinds 0 Fullscreen 2 Font 18/X11 Map View 76x50 Zoom Use 0% Tactical HUD 1 Map Filters NONE Filters NONE Steam 1 RUN: 0c50ce93-c50d-4e2e-8b1e-750d173ba093